[Event "MČR mládeže v rapid šachu 2024 H10"]
[Site "Harrachov, Czech Republic"]
[Date "????.??.??"]
[Round "7.6"]
[White "Trejbal Jindrich"]
[Black "Vratny Vojtech"]
[Result "1/2-1/2"]
[TimeControl "20+5"]
[WhiteFideId "23743948"]
[BlackFideId "23753692"]
[WhiteElo "1631"]
[BlackElo "1591"]

1. d4 {[%clk 00:20:07]} {[%emt 00:00:01]} Nf6 {[%clk 00:20:07]} {[%emt
00:00:03]} 2. f4 {[%clk 00:20:09]} {[%emt 00:00:04]} d6 {[%clk 00:20:03]}
{[%emt 00:00:08]} 3. Nf3 {[%clk 00:20:12]} {[%emt 00:00:03]} g6 {[%clk
00:20:04]} {[%emt 00:00:04]} 4. e3 {[%clk 00:20:14]} {[%emt 00:00:03]} Bg7
{[%clk 00:20:04]} {[%emt 00:00:04]} 5. Bd3 {[%clk 00:20:00]} {[%emt 00:00:19]}
O-O {[%clk 00:20:01]} {[%emt 00:00:07]} 6. O-O {[%clk 00:19:39]} {[%emt
00:00:27]} Nbd7 {[%clk 00:19:51]} {[%emt 00:00:15]} 7. c3 {[%clk 00:18:44]}
{[%emt 00:01:00]} c5 {[%clk 00:19:47]} {[%emt 00:00:09]} 8. b3 {[%clk
00:17:46]} {[%emt 00:01:04]} Re8 {[%clk 00:18:59]} {[%emt 00:00:52]} 9. Bb2
{[%clk 00:16:36]} {[%emt 00:01:16]} b6 {[%clk 00:18:07]} {[%emt 00:00:53]} 10.
Qd2 {[%clk 00:15:18]} {[%emt 00:01:27]} Bb7 {[%clk 00:17:35]} {[%emt 00:00:33]}
11. Bc2 {[%clk 00:13:08]} {[%emt 00:02:19]} Be4 {[%clk 00:16:45]} {[%emt
00:00:53]} 12. Bxe4 {[%clk 00:12:50]} {[%emt 00:00:24]} Nxe4 {[%clk 00:16:42]}
{[%emt 00:00:07]} 13. Qd3 {[%clk 00:12:41]} {[%emt 00:00:14]} Nef6 {[%clk
00:15:09]} {[%emt 00:01:38]} 14. d5 {[%clk 00:12:01]} {[%emt 00:00:46]} Nf8
{[%clk 00:14:23]} {[%emt 00:00:48]} 15. Nbd2 {[%clk 00:10:54]} {[%emt
00:01:16]} Qd7 {[%clk 00:12:31]} {[%emt 00:01:50]} 16. h3 {[%clk 00:09:19]}
{[%emt 00:01:46]} h5 {[%clk 00:10:46]} {[%emt 00:01:49]} 17. Rab1 {[%clk
00:07:47]} {[%emt 00:01:38]} Rac8 {[%clk 00:08:21]} {[%emt 00:02:27]} 18. c4
{[%clk 00:07:32]} {[%emt 00:00:22]} Qf5 {[%clk 00:05:08]} {[%emt 00:03:18]} 19.
Qxf5 {[%clk 00:06:43]} {[%emt 00:00:54]} gxf5 {[%clk 00:05:07]} {[%emt
00:00:07]} 20. Nh4 {[%clk 00:05:05]} {[%emt 00:01:42]} e6 {[%clk 00:04:41]}
{[%emt 00:00:29]} 21. Rf3 {[%clk 00:04:16]} {[%emt 00:00:56]} Ng6 {[%clk
00:03:55]} {[%emt 00:00:49]} 22. Nxg6 {[%clk 00:03:38]} {[%emt 00:00:45]} fxg6
{[%clk 00:03:56]} {[%emt 00:00:03]} 23. Rg3 {[%clk 00:03:29]} {[%emt 00:00:15]}
Kf7 {[%clk 00:03:34]} {[%emt 00:00:26]} 24. dxe6+ {[%clk 00:03:11]} {[%emt
00:00:23]} Rxe6 {[%clk 00:03:29]} {[%emt 00:00:10]} 25. Nf3 {[%clk 00:02:38]}
{[%emt 00:00:38]} Ne4 {[%clk 00:02:46]} {[%emt 00:00:47]} 26. Ng5+ {[%clk
00:01:44]} {[%emt 00:01:00]} Nxg5 {[%clk 00:02:44]} {[%emt 00:00:06]} 27. fxg5
{[%clk 00:01:45]} {[%emt 00:00:05]} Bxb2 {[%clk 00:02:44]} {[%emt 00:00:05]} 28.
Rxb2 {[%clk 00:01:49]} {[%emt 00:00:02]} Rce8 {[%clk 00:02:44]} {[%emt
00:00:04]} 29. Kf2 {[%clk 00:01:48]} {[%emt 00:00:06]} Re4 {[%clk 00:02:33]}
{[%emt 00:00:16]} 30. Rd2 {[%clk 00:01:46]} {[%emt 00:00:08]} Ke6 {[%clk
00:02:33]} {[%emt 00:00:05]} 31. Rf3 {[%clk 00:01:34]} {[%emt 00:00:17]} Kd7
{[%clk 00:02:21]} {[%emt 00:00:15]} 32. Rf4 {[%clk 00:01:18]} {[%emt 00:00:23]}
Rxf4+ {[%clk 00:02:23]} {[%emt 00:00:04]} 33. exf4 {[%clk 00:01:22]} Re4 {[%clk
00:02:21]} {[%emt 00:00:06]} 34. g3 {[%clk 00:01:19]} {[%emt 00:00:10]} Kc6
{[%clk 00:02:04]} {[%emt 00:00:22]} 1/2-1/2



[ePGN "0.1;DGT LiveChess/2.2.6"]

[Event "MČR mládeže v rapid šachu 2024 H10"]
[Site "Harrachov, Czech Republic"]
[Date "????.??.??"]
[Round "7.7"]
[White "Bukovskij Dmitri"]
[Black "Krivka Lukas"]
[Result "1-0"]
[TimeControl "20+5"]
[WhiteFideId "23749660"]
[BlackFideId "23752092"]
[WhiteElo "1700"]
[BlackElo "1489"]

1. d4 {[%clk 00:20:08]} {[%emt 00:00:01]} d5 {[%clk 00:20:08]} {[%emt
00:00:02]} 2. c4 {[%clk 00:20:12]} {[%emt 00:00:01]} e6 {[%clk 00:20:12]} 3.
Nc3 {[%clk 00:20:16]} Nf6 {[%clk 00:20:15]} {[%emt 00:00:02]} 4. cxd5 {[%clk
00:20:20]} exd5 {[%clk 00:20:19]} {[%emt 00:00:02]} 5. Bg5 {[%clk 00:20:24]}
{[%emt 00:00:01]} Be7 {[%clk 00:20:22]} {[%emt 00:00:02]} 6. e3 {[%clk
00:20:28]} {[%emt 00:00:01]} c6 {[%clk 00:20:23]} {[%emt 00:00:04]} 7. Qc2
{[%clk 00:20:33]} {[%emt 00:00:01]} O-O {[%clk 00:20:19]} {[%emt 00:00:09]} 8.
Bd3 {[%clk 00:20:36]} {[%emt 00:00:02]} h6 {[%clk 00:20:22]} {[%emt 00:00:01]}
9. Bf4 {[%clk 00:20:40]} Bd6 {[%clk 00:19:07]} {[%emt 00:01:20]} 10. Bxd6
{[%emt 00:00:37]} Qxd6 {[%clk 00:19:08]} {[%emt 00:00:02]} 11. Nf3 {[%clk
00:20:11]} {[%emt 00:00:04]} Be6 {[%clk 00:17:17]} {[%emt 00:01:54]} 12. O-O
{[%clk 00:20:09]} {[%emt 00:00:09]} Nbd7 {[%clk 00:17:07]} {[%emt 00:00:15]} 13.
Rac1 {[%clk 00:19:44]} {[%emt 00:00:30]} a6 {[%clk 00:15:04]} {[%emt 00:02:09]}
14. Nd2 {[%clk 00:15:53]} {[%emt 00:03:55]} c5 {[%clk 00:11:15]} {[%emt
00:03:54]} 15. dxc5 {[%clk 00:13:07]} {[%emt 00:02:50]} Nxc5 {[%clk 00:09:17]}
{[%emt 00:02:03]} 16. Nb5 {[%clk 00:12:53]} {[%emt 00:00:20]} axb5 {[%clk
00:09:02]} {[%emt 00:00:20]} 17. Qxc5 {[%clk 00:12:56]} {[%emt 00:00:02]} Qxc5
{[%clk 00:09:05]} {[%emt 00:00:02]} 18. Rxc5 {[%clk 00:12:56]} {[%emt
00:00:04]} Rxa2 {[%clk 00:08:30]} {[%emt 00:00:40]} 19. Rxb5 {[%clk 00:12:53]}
{[%emt 00:00:08]} Ra7 {[%clk 00:07:26]} {[%emt 00:01:09]} 20. Nb3 {[%clk
00:11:44]} {[%emt 00:01:15]} Bd7 {[%clk 00:06:44]} {[%emt 00:00:47]} 21. Rb4
{[%clk 00:11:20]} {[%emt 00:00:28]} Bc6 {[%clk 00:06:15]} {[%emt 00:00:34]} 22.
Bb5 {[%clk 00:10:47]} {[%emt 00:00:38]} Rc8 {[%clk 00:05:13]} {[%emt 00:01:07]}
23. Rc1 {[%clk 00:10:07]} {[%emt 00:00:45]} Ne8 {[%clk 00:03:13]} {[%emt
00:02:05]} 24. Bxc6 {[%clk 00:08:33]} {[%emt 00:01:40]} bxc6 {[%clk 00:03:08]}
{[%emt 00:00:10]} 25. Rb6 {[%clk 00:06:38]} {[%emt 00:01:59]} Rac7 {[%clk
00:03:08]} {[%emt 00:00:06]} 26. Nc5 {[%clk 00:06:20]} {[%emt 00:00:22]} Ra7
{[%clk 00:02:37]} {[%emt 00:00:37]} 27. Nd3 {[%clk 00:05:07]} {[%emt 00:01:18]}
c5 {[%clk 00:02:24]} {[%emt 00:00:18]} 28. h3 {[%clk 00:04:06]} {[%emt
00:01:05]} c4 {[%clk 00:02:15]} {[%emt 00:00:14]} 29. Nf4 {[%clk 00:04:00]}
{[%emt 00:00:11]} Rd7 {[%clk 00:01:37]} {[%emt 00:00:43]} 30. Rd1 {[%clk
00:03:22]} {[%emt 00:00:42]} Rcd8 {[%clk 00:00:56]} {[%emt 00:00:46]} 31. Rc6
{[%clk 00:02:25]} {[%emt 00:01:02]} Nf6 {[%clk 00:00:42]} {[%emt 00:00:19]} 32.
f3 {[%clk 00:01:54]} {[%emt 00:00:36]} Rb8 {[%clk 00:00:15]} {[%emt 00:00:32]}
33. Rd2 {[%clk 00:01:48]} {[%emt 00:00:11]} Re8 {[%clk 00:00:16]} {[%emt
00:00:03]} 34. Kf2 {[%clk 00:01:48]} {[%emt 00:00:06]} Red8 {[%clk 00:00:20]}
{[%emt 00:00:01]} 35. Ne2 {[%clk 00:00:42]} {[%emt 00:01:10]} Rd6 {[%clk
00:00:22]} {[%emt 00:00:03]} 36. Rc5 {[%clk 00:00:41]} {[%emt 00:00:06]} R6d7
{[%clk 00:00:27]} 37. Nd4 {[%clk 00:00:33]} {[%emt 00:00:13]} Rd6 {[%clk
00:00:25]} {[%emt 00:00:07]} 38. Nf5 {[%clk 00:00:19]} {[%emt 00:00:19]} R6d7
{[%clk 00:00:28]} {[%emt 00:00:02]} 39. Nd4 {[%clk 00:00:20]} {[%emt 00:00:03]}
Rd6 {[%clk 00:00:32]} {[%emt 00:00:01]} 40. Nc6 {[%clk 00:00:18]} {[%emt
00:00:08]} R8d7 {[%clk 00:00:28]} {[%emt 00:00:09]} 41. Ne5 {[%clk 00:00:15]}
{[%emt 00:00:08]} Rd8 {[%clk 00:00:29]} {[%emt 00:00:04]} 42. Rc7 {[%clk
00:00:10]} {[%emt 00:00:10]} Nd7 {[%clk 00:00:22]} {[%emt 00:00:12]} 43. Nxc4
{[%clk 00:00:14]} Re6 {[%clk 00:00:15]} {[%emt 00:00:11]} 44. Na5 {[%clk
00:00:08]} {[%emt 00:00:12]} Ree8 {[%clk 00:00:17]} {[%emt 00:00:03]} 45. Nc6
{[%clk 00:00:10]} {[%emt 00:00:03]} Rc8 {[%clk 00:00:20]} {[%emt 00:00:02]} 46.
Rxd7 {[%clk 00:00:13]} {[%emt 00:00:02]} Rxc6 {[%clk 00:00:23]} {[%emt
00:00:02]} 47. R7xd5 {[%clk 00:00:17]} {[%emt 00:00:01]} Kh7 {[%clk 00:00:24]}
{[%emt 00:00:04]} 48. e4 {[%clk 00:00:21]} {[%emt 00:00:01]} Rb6 {[%clk
00:00:28]} {[%emt 00:00:02]} 49. Rd7 {[%clk 00:00:24]} {[%emt 00:00:01]} Kg6
{[%emt 00:00:05]} 50. R7d6+ {[%clk 00:00:23]} {[%emt 00:00:05]} Rxd6 {[%clk
00:00:29]} {[%emt 00:00:05]} 51. Rxd6+ {[%emt 00:00:01]} f6 52. Ke3 {[%clk
00:00:24]} {[%emt 00:00:08]} Rb8 {[%clk 00:00:38]} 53. Rd2 {[%clk 00:00:28]}
{[%emt 00:00:01]} Rb3+ {[%clk 00:00:42]} 54. Kf4 {[%clk 00:00:28]} {[%emt
00:00:05]} Rb5 {[%clk 00:00:43]} {[%emt 00:00:04]} 55. g4 {[%clk 00:00:29]}
{[%emt 00:00:05]} Kf7 {[%clk 00:00:37]} {[%emt 00:00:10]} 56. h4 {[%clk
00:00:20]} {[%emt 00:00:14]} g5+ {[%clk 00:00:16]} {[%emt 00:00:26]} 57. hxg5
{[%clk 00:00:24]} hxg5+ {[%clk 00:00:20]} {[%emt 00:00:02]} 58. Kg3 {[%clk
00:00:29]} Kg6 {[%clk 00:00:23]} {[%emt 00:00:02]} 59. Kf2 {[%clk 00:00:08]}
{[%emt 00:00:26]} Rb3 {[%clk 00:00:26]} {[%emt 00:00:02]} 60. Ke2 {[%clk
00:00:11]} {[%emt 00:00:02]} Rb4 {[%clk 00:00:24]} {[%emt 00:00:06]} 61. Rc2
{[%clk 00:00:08]} {[%emt 00:00:08]} Rb3 {[%clk 00:00:26]} {[%emt 00:00:03]} 62.
Kf2 {[%clk 00:00:09]} {[%emt 00:00:03]} Rb4 {[%clk 00:00:28]} {[%emt 00:00:03]}
63. Ke2 {[%clk 00:00:08]} {[%emt 00:00:06]} Rb3 {[%clk 00:00:33]} 64. Rc3
{[%clk 00:00:07]} {[%emt 00:00:06]} Rxb2+ {[%clk 00:00:34]} {[%emt 00:00:04]}
65. Ke3 {[%clk 00:00:12]} Rb1 {[%clk 00:00:37]} {[%emt 00:00:03]} 66. Kd4
{[%clk 00:00:13]} {[%emt 00:00:04]} Rd1+ {[%clk 00:00:38]} {[%emt 00:00:02]} 67.
Rd3 {[%clk 00:00:14]} {[%emt 00:00:05]} Ra1 {[%clk 00:00:40]} {[%emt 00:00:03]}
68. Kd5 {[%clk 00:00:16]} {[%emt 00:00:03]} Ra5+ {[%clk 00:00:44]} 69. Ke6
{[%clk 00:00:19]} {[%emt 00:00:01]} Ra6+ {[%clk 00:00:48]} {[%emt 00:00:02]} 70.
Rd6 {[%clk 00:00:23]} {[%emt 00:00:01]} Ra7 {[%clk 00:00:49]} {[%emt 00:00:04]}
71. e5 {[%clk 00:00:17]} {[%emt 00:00:11]} fxe5 {[%clk 00:00:35]} {[%emt
00:00:19]} 72. Kxe5+ {[%clk 00:00:20]} {[%emt 00:00:01]} Kg7 {[%clk 00:00:39]}
73. Rd5 {[%clk 00:00:10]} {[%emt 00:00:16]} Re7+ {[%clk 00:00:35]} {[%emt
00:00:09]} 74. Kd6 {[%clk 00:00:08]} {[%emt 00:00:06]} Rf7 {[%clk 00:00:33]}
{[%emt 00:00:06]} 75. Rxg5+ {[%clk 00:00:12]} {[%emt 00:00:01]} Kh6 {[%clk
00:00:35]} {[%emt 00:00:04]} 76. Rf5 {[%clk 00:00:16]} {[%emt 00:00:01]} Ra7
{[%clk 00:00:34]} {[%emt 00:00:06]} 77. Ke5 {[%clk 00:00:16]} {[%emt 00:00:05]}
Kg6 {[%clk 00:00:35]} {[%emt 00:00:04]} 78. Kf4 {[%clk 00:00:12]} {[%emt
00:00:09]} Ra4+ {[%clk 00:00:40]} {[%emt 00:00:01]} 79. Kg3 {[%clk 00:00:16]}
Ra3 {[%clk 00:00:40]} {[%emt 00:00:05]} 80. Kh4 {[%clk 00:00:12]} {[%emt
00:00:09]} Ra1 {[%clk 00:00:44]} {[%emt 00:00:01]} 81. Kg3 {[%clk 00:00:08]}
{[%emt 00:00:08]} Ra3 {[%clk 00:00:46]} {[%emt 00:00:04]} 82. Re5 {[%clk
00:00:09]} {[%emt 00:00:04]} Kf6 {[%clk 00:00:48]} {[%emt 00:00:02]} 83. Re4
{[%clk 00:00:12]} {[%emt 00:00:02]} Kg5 {[%clk 00:00:47]} {[%emt 00:00:06]} 84.
Re5+ {[%clk 00:00:06]} {[%emt 00:00:11]} Kf6 {[%clk 00:00:52]} 85. Rd5 {[%clk
00:00:07]} {[%emt 00:00:04]} Kg6 {[%clk 00:00:45]} {[%emt 00:00:12]} 86. Kf4
{[%clk 00:00:07]} {[%emt 00:00:05]} Rb3 {[%clk 00:00:43]} {[%emt 00:00:07]} 87.
Rd4 {[%clk 00:00:08]} {[%emt 00:00:04]} Ra3 {[%clk 00:00:45]} {[%emt 00:00:03]}
88. Ke4 {[%clk 00:00:10]} {[%emt 00:00:04]} Ra8 {[%clk 00:00:39]} {[%emt
00:00:11]} 89. f4 {[%clk 00:00:12]} {[%emt 00:00:02]} Re8+ {[%clk 00:00:44]} 90.
Kf3 {[%clk 00:00:16]} {[%emt 00:00:02]} Re1 {[%clk 00:00:48]} 91. Kf2 {[%clk
00:00:12]} {[%emt 00:00:09]} Ra1 {[%clk 00:00:50]} {[%emt 00:00:03]} 92. Rd6+
{[%clk 00:00:15]} {[%emt 00:00:02]} Kg7 {[%clk 00:00:53]} {[%emt 00:00:02]} 93.
Kg3 {[%clk 00:00:18]} Ra3+ {[%clk 00:00:57]} 94. Kh4 {[%clk 00:00:23]} {[%emt
00:00:01]} Ra4 {[%clk 00:01:02]} 95. Kg5 {[%clk 00:00:19]} {[%emt 00:00:09]}
Ra7 {[%clk 00:00:55]} {[%emt 00:00:12]} 96. f5 {[%clk 00:00:18]} {[%emt
00:00:06]} Rf7 {[%clk 00:00:54]} {[%emt 00:00:06]} 97. Rg6+ {[%clk 00:00:18]}
{[%emt 00:00:05]} Kh7 {[%clk 00:00:56]} {[%emt 00:00:02]} 98. Rf6 {[%clk
00:00:15]} {[%emt 00:00:08]} Ra7 {[%clk 00:00:53]} {[%emt 00:00:07]} 99. Rh6+
{[%clk 00:00:09]} {[%emt 00:00:12]} Kg7 {[%clk 00:00:57]} 100. f6+ {[%clk
00:00:12]} {[%emt 00:00:02]} Kg8 {[%clk 00:00:55]} {[%emt 00:00:07]} 101. Kg6
{[%clk 00:00:14]} {[%emt 00:00:03]} Ra6 {[%clk 00:00:47]} {[%emt 00:00:14]} 102.
g5 {[%clk 00:00:18]} {[%emt 00:00:01]} Ra7 {[%clk 00:00:45]} {[%emt 00:00:06]}
103. Rh4 {[%clk 00:00:17]} {[%emt 00:00:04]} Rg7+ {[%clk 00:00:47]} {[%emt
00:00:04]} 104. Kf5 {[%clk 00:00:18]} {[%emt 00:00:04]} Ra7 {[%clk 00:00:46]}
{[%emt 00:00:06]} 105. Re4 {[%clk 00:00:16]} {[%emt 00:00:07]} Ra5+ {[%clk
00:00:31]} {[%emt 00:00:20]} 106. Re5 {[%clk 00:00:20]} Kf8 {[%clk 00:00:18]}
{[%emt 00:00:18]} 107. g6 {[%clk 00:00:24]} Ra7 {[%clk 00:00:17]} {[%emt
00:00:06]} 108. g7+ {[%clk 00:00:18]} {[%emt 00:00:11]} Kg8 {[%clk 00:00:11]}
{[%emt 00:00:11]} 109. Re8+ {[%clk 00:00:21]} {[%emt 00:00:02]} 1-0



[ePGN "0.1;DGT LiveChess/2.2.6"]

[Event "MČR mládeže v rapid šachu 2024 H10"]
[Site "Harrachov, Czech Republic"]
[Date "????.??.??"]
[Round "7.8"]
[White "Hlavacek Pavel"]
[Black "Burel Jan"]
[Result "0-1"]
[TimeControl "20+5"]
[WhiteFideId "23761768"]
[BlackFideId "23754907"]
[WhiteElo "1641"]
[BlackElo "1566"]

1. d4 {[%clk 00:20:08]} {[%emt 00:00:02]} f5 {[%clk 00:20:08]} {[%emt
00:00:02]} 2. c4 {[%clk 00:20:10]} {[%emt 00:00:03]} g6 {[%clk 00:20:11]}
{[%emt 00:00:03]} 3. Nc3 {[%clk 00:20:11]} {[%emt 00:00:04]} Nf6 {[%clk
00:20:12]} {[%emt 00:00:03]} 4. Nf3 {[%clk 00:20:11]} {[%emt 00:00:05]} d6
{[%clk 00:20:12]} {[%emt 00:00:05]} 5. g3 {[%clk 00:20:09]} {[%emt 00:00:07]}
Bg7 {[%clk 00:20:12]} {[%emt 00:00:04]} 6. Bg2 {[%clk 00:20:12]} {[%emt
00:00:02]} c6 {[%clk 00:20:13]} {[%emt 00:00:04]} 7. O-O {[%clk 00:20:01]}
{[%emt 00:00:17]} O-O {[%clk 00:20:10]} {[%emt 00:00:08]} 8. b3 {[%emt
00:00:50]} Na6 {[%clk 00:20:01]} {[%emt 00:00:12]} 9. a3 {[%clk 00:19:02]}
{[%emt 00:00:21]} Qe8 {[%clk 00:19:29]} {[%emt 00:00:36]} 10. Bb2 {[%clk
00:17:38]} {[%emt 00:01:30]} e5 {[%clk 00:18:34]} {[%emt 00:01:00]} 11. e3
{[%clk 00:17:02]} {[%emt 00:00:42]} e4 {[%clk 00:17:01]} {[%emt 00:01:38]} 12.
Nd2 {[%clk 00:16:48]} {[%emt 00:00:18]} Ng4 {[%clk 00:16:12]} {[%emt 00:00:53]}
13. h3 {[%clk 00:16:27]} {[%emt 00:00:27]} Nf6 {[%clk 00:16:13]} {[%emt
00:00:04]} 14. b4 {[%clk 00:14:45]} {[%emt 00:01:48]} Bd7 {[%clk 00:15:23]}
{[%emt 00:00:54]} 15. Qb3 {[%clk 00:12:41]} {[%emt 00:02:08]} Kh8 {[%clk
00:15:06]} {[%emt 00:00:23]} 16. Ne2 {[%clk 00:10:01]} {[%emt 00:02:45]} g5
{[%clk 00:13:49]} {[%emt 00:01:22]} 17. a4 {[%clk 00:09:17]} {[%emt 00:00:49]}
h5 {[%clk 00:12:52]} {[%emt 00:01:01]} 18. Ba3 {[%clk 00:08:09]} {[%emt
00:01:14]} Qe6 {[%clk 00:11:59]} {[%emt 00:00:58]} 19. c5 {[%clk 00:06:14]}
{[%emt 00:02:01]} d5 {[%clk 00:10:44]} {[%emt 00:01:20]} 20. b5 {[%clk
00:05:52]} {[%emt 00:00:27]} Nb8 {[%clk 00:10:42]} {[%emt 00:00:07]} 21. Rab1
{[%clk 00:04:35]} {[%emt 00:01:22]} h4 {[%clk 00:09:20]} {[%emt 00:01:26]} 22.
gxh4 {[%clk 00:03:23]} {[%emt 00:01:18]} gxh4 {[%clk 00:08:47]} {[%emt
00:00:38]} 23. Nf4 {[%clk 00:03:26]} {[%emt 00:00:02]} Qf7 {[%clk 00:08:50]}
{[%emt 00:00:02]} 24. Kh1 {[%clk 00:02:40]} {[%emt 00:00:50]} Bh6 {[%clk
00:07:30]} {[%emt 00:01:27]} 25. Rg1 {[%clk 00:01:54]} {[%emt 00:00:51]} Nh5
{[%clk 00:06:29]} {[%emt 00:01:06]} 26. Nxh5 {[%clk 00:01:19]} {[%emt
00:00:40]} Qxh5 {[%clk 00:06:27]} {[%emt 00:00:07]} 27. Qd1 {[%clk 00:01:18]}
{[%emt 00:00:06]} Qe8 {[%clk 00:05:35]} {[%emt 00:00:56]} 28. bxc6 {[%clk
00:01:09]} {[%emt 00:00:14]} bxc6 {[%clk 00:04:51]} {[%emt 00:00:49]} 29. Bf1
{[%clk 00:00:46]} {[%emt 00:00:28]} f4 {[%clk 00:04:31]} {[%emt 00:00:25]} 30.
Qe2 {[%clk 00:00:47]} {[%emt 00:00:04]} f3 {[%clk 00:04:30]} {[%emt 00:00:06]}
31. Qd1 {[%clk 00:00:44]} {[%emt 00:00:05]} Rg8 {[%clk 00:04:12]} {[%emt
00:00:26]} 32. Rxg8+ {[%clk 00:00:34]} {[%emt 00:00:15]} Qxg8 {[%clk 00:04:14]}
{[%emt 00:00:02]} 33. Rb7 {[%clk 00:00:14]} {[%emt 00:00:24]} Bxe3 {[%clk
00:02:35]} {[%emt 00:01:44]} 34. fxe3 {[%clk 00:00:16]} {[%emt 00:00:04]} f2
{[%clk 00:02:39]} 35. Be2 {[%clk 00:00:11]} {[%emt 00:00:10]} Bxh3 {[%clk
00:02:37]} {[%emt 00:00:07]} 36. Bg4 {[%clk 00:00:12]} {[%emt 00:00:05]} Bxg4
{[%clk 00:01:37]} {[%emt 00:01:04]} 37. Qf1 {[%clk 00:00:13]} {[%emt 00:00:03]}
Qf8 {[%clk 00:01:16]} {[%emt 00:00:28]} 38. Rc7 {[%clk 00:00:10]} {[%emt
00:00:07]} Qf5 {[%clk 00:00:52]} {[%emt 00:00:27]} 39. Qg2 {[%clk 00:00:09]}
{[%emt 00:00:08]} Bf3 {[%clk 00:00:23]} {[%emt 00:00:35]} 40. Nxf3 {[%clk
00:00:09]} {[%emt 00:00:04]} Qxf3 {[%clk 00:00:26]} {[%emt 00:00:01]} 41. Rc8+
{[%clk 00:00:14]} Kh7 {[%clk 00:00:26]} {[%emt 00:00:04]} 42. Rc7+ {[%clk
00:00:16]} {[%emt 00:00:03]} Kh6 {[%clk 00:00:28]} {[%emt 00:00:02]} 43. Kh2
{[%clk 00:00:11]} {[%emt 00:00:09]} Qxg2+ {[%clk 00:00:12]} {[%emt 00:00:22]}
44. Kxg2 {[%clk 00:00:14]} {[%emt 00:00:02]} Na6 {[%clk 00:00:13]} {[%emt
00:00:04]} 45. Rxc6+ {[%clk 00:00:17]} {[%emt 00:00:03]} Kg5 {[%clk 00:00:13]}
{[%emt 00:00:04]} 46. Rxa6 {[%clk 00:00:20]} {[%emt 00:00:03]} Rf8 {[%clk
00:00:14]} {[%emt 00:00:04]} 47. Kf1 {[%clk 00:00:23]} {[%emt 00:00:02]} h3
{[%clk 00:00:16]} {[%emt 00:00:03]} 48. c6 {[%clk 00:00:13]} {[%emt 00:00:15]}
Rf7 {[%clk 00:00:17]} {[%emt 00:00:03]} 49. Ra5 {[%clk 00:00:11]} {[%emt
00:00:07]} h2 {[%clk 00:00:21]} {[%emt 00:00:01]} 50. Rxd5+ {[%clk 00:00:15]}
{[%emt 00:00:01]} Kg4 {[%clk 00:00:24]} {[%emt 00:00:02]} 51. Kg2 {[%clk
00:00:08]} {[%emt 00:00:13]} f1=Q+ {[%clk 00:00:27]} {[%emt 00:00:02]} 52. Kxh2
{[%clk 00:00:11]} Rf2# {[%clk 00:00:31]} {[%emt 00:00:03]} 0-1



[ePGN "0.1;DGT LiveChess/2.2.6"]